bitfinex/quotes_BTCUSD_20220211
["timestamp","ask_amount","ask_price","bid_price","bid_amount"]
[1644540221781,0.00933,42907.0,42906.0,0.26266381]
[1644540226129,0.00933,42907.0,42904.0,0.0011]
[1644540226331,0.00933,42907.0,42904.0,0.00137773]
[1644540226528,0.0429,42906.0,42904.0,0.00137773]
[1644540226928,0.29986818,42905.0,42904.0,0.00137773]
[1644540227128,0.34276818,42905.0,42904.0,0.00137773]
[1644540227328,0.1929,42905.0,42904.0,0.0011]
[1644540228331,0.0929,42905.0,42904.0,0.0011]
[1644540228992,0.0929,42905.0,42904.0,0.19400216]
[1644540230292,0.0929,42905.0,42904.0,0.0011]
[1644540235032,0.05,42905.0,42904.0,0.0011]
[1644540235232,0.00933,42906.0,42904.0,0.0011]
[1644540236878,0.00933,42906.0,42904.0,0.00103492]
[1644540237478,0.00933,42906.0,42905.0,0.26073667]
[1644540239280,0.00933,42906.0,42905.0,0.56002153]
[1644540239487,0.01986156,42919.0,42905.0,0.61363575]
[1644540239746,0.01986156,42919.0,42905.0,0.61370775]
[1644540239942,0.5,42924.0,42905.0,0.61370775]
[1644540240137,0.01818779,42919.0,42905.0,0.61370775]
[1644540240338,0.01818779,42919.0,42916.0,0.46999432]
[1644540240741,0.01818779,42919.0,42916.0,0.51999432]
[1644540240941,0.01818779,42919.0,42910.0,0.00034969]
[1644540241142,0.01818779,42919.0,42910.0,0.00027769]
[1644540241342,0.31818779,42919.0,42910.0,0.00027769]
[1644540241539,0.1104538,42918.0,42910.0,0.00027769]
[1644540241739,0.058316,42916.0,42910.0,0.00027769]
[1644540241939,0.101216,42916.0,42908.0,0.21100539]
[1644540242239,0.35912252,42914.0,42912.0,0.00027768]
[1644540242442,0.05,42914.0,42912.0,0.00027768]
[1644540242640,0.1,42914.0,42912.0,0.00027768]
[1644540242841,0.15,42914.0,42912.0,0.00027768]
[1644540243042,0.058318,42913.0,42907.0,7.2e-05]
[1644540243241,0.058318,42913.0,42911.0,6.536e-05]
[1644540244077,0.058318,42913.0,42906.0,7.2e-05]
[1644540244275,0.05,42914.0,42905.0,0.46969314]
[1644540244276,0.116637,42911.0,42910.0,0.00021591]
[1644540244886,0.166637,42911.0,42910.0,0.00021591]
[1644540245376,0.116641,42909.0,42906.0,7.2e-05]
[1644540245576,0.116641,42909.0,42905.0,0.20291869]
[1644540245577,0.224963,42909.0,42908.0,0.00021592]
[1644540246177,0.267863,42909.0,42908.0,0.00021592]
[1644540246579,0.83587719,42909.0,42906.0,7.2e-05]
[1644540246779,0.367863,42909.0,42906.0,0.00027718]
[1644540246983,0.05,42907.0,42906.0,0.00027718]
[1644540247236,0.65,42905.0,42903.0,6.92e-06]
[1644540247429,0.0929,42904.0,42903.0,6.92e-06]
[1644540247627,0.1429,42904.0,42900.0,0.00623112]
[1644540247831,0.33720223,42901.0,42900.0,0.00512225]
[1644540248027,0.0429,42901.0,42900.0,0.00512225]
[1644540250029,0.2404569,42901.0,42900.0,0.00512225]
[1644540251380,0.2404569,42901.0,42900.0,0.00012225]
[1644540251582,0.65,42899.0,42892.0,0.00110847]
[1644540251783,0.058338,42895.0,42892.0,0.00110847]
[1644540251980,0.0429,42894.0,42892.0,0.00110847]
[1644540252579,0.0429,42894.0,42893.0,0.29451473]
[1644540252778,0.34208236,42894.0,42889.0,0.02264979]
[1644540253179,0.49208236,42894.0,42889.0,0.02264979]
[1644540253780,0.175046,42893.0,42889.0,0.04219403]
[1644540253980,0.0429,42892.0,42889.0,0.02274424]
[1644540254179,0.0429,42892.0,42891.0,0.29803756]
[1644540255131,0.0429,42892.0,42891.0,0.00450018]
[1644540256332,0.0429,42892.0,42891.0,0.34683664]
[1644540257132,0.0429,42892.0,42891.0,0.54832608]
[1644540258234,0.0429,42892.0,42891.0,0.34683664]
[1644540259485,0.101249,42892.0,42891.0,0.34683664]
[1644540260285,0.31069041,42892.0,42891.0,0.34683664]
[1644540260786,0.201249,42892.0,42891.0,0.34683664]
[1644540261787,0.101249,42892.0,42891.0,0.34683664]
[1644540261989,0.201249,42892.0,42891.0,0.34683664]
[1644540262433,9.201249,42892.0,42891.0,0.00450018]
[1644540262634,9.201249,42892.0,42889.0,0.01666099]
[1644540262635,0.2,42890.0,42889.0,0.01666099]
[1644540262833,0.2,42890.0,42889.0,0.00126099]
[1644540262834,0.4929,42890.0,42889.0,0.00126099]
[1644540263032,0.4929,42890.0,42888.0,49.30084199]
[1644540263033,0.2,42889.0,42888.0,49.30084199]
[1644540263235,0.401269,42889.0,42888.0,49.30084199]
[1644540263530,0.401269,42889.0,42888.0,48.60043299]
[1644540263531,0.501269,42889.0,42888.0,48.60043299]
[1644540263734,0.4429,42889.0,42888.0,48.60043299]
[1644540263931,0.46268455,42889.0,42888.0,48.60043299]
[1644540264130,0.46268455,42889.0,42888.0,47.90000499]
[1644540264131,0.52681455,42889.0,42888.0,47.90000499]
[1644540264531,0.79280252,42889.0,42888.0,47.80201675]
[1644540264730,1.73443152,42889.0,42888.0,47.10157275]
[1644540264931,1.73443152,42889.0,42888.0,47.10125485]
[1644540265131,1.78443152,42889.0,42888.0,46.40081085]
[1644540265333,1.83100152,42889.0,42888.0,46.40081085]
[1644540265531,1.88937352,42889.0,42888.0,46.40081085]
[1644540265731,1.83100152,42889.0,42888.0,45.70034885]
[1644540266178,1.62906989,42889.0,42888.0,45.70034885]
[1644540266380,1.37906989,42889.0,42888.0,44.99991085]
[1644540266580,1.37338455,42889.0,42888.0,44.99991085]
[1644540266978,1.43175755,42889.0,42888.0,44.64972285]
[1644540267379,0.93175755,42889.0,42888.0,44.29953085]
[1644540267779,1.22338455,42889.0,42888.0,44.29953085]
[1644540267982,1.2431691,42889.0,42888.0,43.94929285]
[1644540268178,1.28175355,42889.0,42888.0,43.94929285]
[1644540268379,1.28175355,42889.0,42888.0,43.59907485]
[1644540268979,1.72338455,42889.0,42888.0,42.89863485]
[1644540269178,1.78175355,42889.0,42888.0,42.89863485]
[1644540269580,1.78175355,42889.0,42888.0,42.54840685]
[1644540270033,1.78175355,42889.0,42888.0,42.19817885]
[1644540270432,1.72338455,42889.0,42888.0,42.13980485]
[1644540270635,1.72906989,42889.0,42888.0,41.78955685]
[1644540270839,2.09246989,42889.0,42888.0,41.46106544]
[1644540271035,2.09246989,42889.0,42888.0,40.97974144]
[1644540271036,3.40281464,42889.0,42888.0,40.97974144]
[1644540271240,3.40281464,42889.0,42888.0,39.80598939]
[1644540271438,3.40281464,42889.0,42888.0,39.78728939]
[1644540271639,3.58572601,42889.0,42888.0,39.07352939]
[1644540271836,3.60551056,42889.0,42888.0,38.28784739]
[1644540272033,3.60551056,42889.0,42888.0,38.26584739]
[1644540272034,3.58572601,42889.0,42888.0,38.26584739]
[1644540272235,2.50888926,42889.0,42888.0,37.34642662]
[1644540272436,2.10258926,42889.0,42888.0,37.282874]
[1644540272636,2.10258926,42889.0,42888.0,36.582336]
[1644540272835,2.10258926,42889.0,42888.0,36.572336]
[1644540273236,2.10258926,42889.0,42888.0,36.222109]
[1644540273478,3.17942601,42889.0,42888.0,34.63804078]
[1644540273681,4.86591801,42889.0,42888.0,33.50999417]
[1644540273882,5.09486321,42889.0,42888.0,33.31831317]
[1644540274078,5.09486321,42889.0,42888.0,32.56516263]
[1644540274079,5.07507866,42889.0,42888.0,32.56516263]
[1644540274277,5.32985492,42889.0,42888.0,31.82671787]
[1644540274476,5.32985492,42889.0,42888.0,31.80141787]
[1644540274678,5.07507866,42889.0,42888.0,30.91685487]
[1644540274877,5.07507866,42889.0,42888.0,30.56658187]
[1644540275476,5.07507866,42889.0,42888.0,29.86316687]
[1644540275677,5.47507866,42889.0,42888.0,29.67041087]
[1644540275876,5.47507866,42889.0,42888.0,28.63095299]
[1644540275877,5.09486321,42889.0,42888.0,28.63095299]
[1644540276078,5.07507866,42889.0,42888.0,19.73621873]
[1644540276285,5.07507866,42889.0,42888.0,2.8392249]
[1644540276491,5.07507866,42889.0,42862.0,0.37364287]
[1644540276492,0.175219,42869.0,42862.0,0.37364287]
[1644540276782,0.175219,42869.0,42863.0,0.33791954]
[1644540276783,0.3634,42865.0,42863.0,0.33791954]
[1644540276981,0.0467,42864.0,42863.0,0.33791954]
[1644540277245,0.5467,42864.0,42863.0,0.33791954]
[1644540277428,0.5467,42864.0,42862.0,0.33964287]
[1644540277429,0.6467,42864.0,42862.0,0.33964287]
[1644540277628,1.1467,42864.0,42862.0,0.33964287]
[1644540277828,0.116783,42863.0,42862.0,0.33964287]
[1644540278028,0.213483,42863.0,42862.0,0.33964287]
[1644540278228,0.763483,42863.0,42862.0,0.33964287]
[1644540278429,0.863483,42863.0,42862.0,0.33964287]
[1644540278829,1.363483,42863.0,42862.0,0.33964287]
[1644540279231,1.363483,42863.0,42857.0,0.00106]
[1644540280133,0.20470919,42861.0,42857.0,0.00106]
[1644540280339,0.20470919,42861.0,42855.0,0.9912908]
[1644540280340,0.82704169,42861.0,42855.0,0.9912908]
[1644540280546,0.3634,42859.0,42855.0,0.9912908]
[1644540280734,0.3634,42859.0,42855.0,0.6408378]
[1644540280735,0.30463508,42858.0,42855.0,0.6408378]
[1644540280983,0.40463508,42858.0,42855.0,0.6408378]
[1644540281384,0.5,42857.0,42855.0,0.2903718]
[1644540281587,0.0467,42856.0,42855.0,0.2353718]
[1644540281783,0.163525,42856.0,42855.0,0.2353718]
[1644540281983,0.163525,42856.0,42854.0,0.01628923]
[1644540281984,0.116828,42855.0,42853.0,0.00020872]
[1644540282183,0.29950804,42854.0,42853.0,0.00020872]
[1644540282383,1.12658252,42854.0,42852.0,0.00261744]
[1644540282586,1.17658252,42854.0,42852.0,0.00125232]
[1644540282783,1.06634504,42854.0,42852.0,0.00125232]
[1644540283185,0.05,42853.0,42852.0,0.00125232]
[1644540283384,0.5967,42853.0,42852.0,0.00125232]
[1644540283583,0.17525,42852.0,42851.0,0.01]
[1644540283783,0.22195,42852.0,42850.0,0.01220574]
[1644540283984,0.3589525,42851.0,42850.0,0.01220574]
[1644540284186,0.3589525,42851.0,42850.0,0.00301126]
[1644540284384,1.34656418,42851.0,42850.0,0.00301126]
[1644540284835,1.21630192,42850.0,42848.0,0.0032]
[1644540285035,1.21630192,42850.0,42848.0,0.00456552]
[1644540285036,0.3584,42849.0,42848.0,0.00456552]
[1644540285235,0.4551,42849.0,42848.0,0.00456552]
[1644540285432,1.5551,42849.0,42848.0,0.00456552]
[1644540285835,1.60167,42849.0,42842.0,0.00134432]
[1644540286035,1.67145455,42849.0,42842.0,0.00134432]
[1644540286235,1.72987555,42849.0,42842.0,0.00134432]
[1644540286435,0.50568534,42848.0,42846.0,0.00136783]
[1644540286635,0.55238534,42848.0,42846.0,0.00136783]
[1644540286939,1.9204054,42848.0,42842.0,0.00134432]
[1644540287134,1.9204054,42848.0,42843.0,0.001289]
[1644540287135,1.298,42845.0,42843.0,0.001289]
[1644540287337,1.298,42845.0,42839.0,0.00207147]
[1644540287338,0.95,42842.0,42839.0,0.00207147]
[1644540287536,0.95,42842.0,42817.0,0.0034]
[1644540287537,0.08,42832.0,42817.0,0.0034]
[1644540287736,0.08,42828.0,42817.0,0.0034]
[1644540287937,0.1267,42828.0,42817.0,0.0034]
[1644540288138,0.08,42826.0,42817.0,0.0034]
[1644540288337,0.08,42823.0,42817.0,0.0034]
[1644540288590,0.058454,42824.0,42814.0,0.0014784]
[1644540288591,0.08,42818.0,42814.0,0.0014784]
[1644540288886,0.08,42817.0,42814.0,0.0014784]
[1644540289085,0.08,42815.0,42814.0,0.0014784]
[1644540289285,0.1267,42815.0,42812.0,7.94e-05]
[1644540289491,0.2267,42815.0,42813.0,0.0001708]
[1644540289985,0.24648455,42815.0,42811.0,0.0003416]
[1644540290385,0.08,42812.0,42811.0,0.0003416]
[1644540290590,0.385,42812.0,42798.0,0.05925676]
[1644540290788,0.08,42810.0,42804.0,0.0006832]
[1644540290984,0.08,42808.0,42804.0,0.0006832]
[1644540291392,0.08,42808.0,42803.0,0.0013664]
[1644540291393,0.08,42804.0,42803.0,0.0013664]
[1644540291593,1.3447,42804.0,42798.0,0.05531317]
[1644540291786,0.2267,42804.0,42798.0,0.38238765]
[1644540291985,0.2267,42804.0,42798.0,0.05538517]
[1644540292255,0.2267,42804.0,42798.0,0.05432876]
[1644540292641,0.08,42802.0,42798.0,0.05432876]
[1644540292844,0.08,42798.0,42795.0,0.00347017]
[1644540293043,1.30525509,42793.0,42789.0,0.01284922]
[1644540293240,0.02803,42792.0,42785.0,0.00085308]
[1644540293442,0.00936,42792.0,42785.0,0.00085308]
[1644540293842,1.218,42791.0,42785.0,0.00085308]
[1644540294041,0.0467,42790.0,42786.0,0.22017498]
[1644540294241,0.0467,42789.0,42786.0,0.22017498]
[1644540294440,0.0467,42788.0,42786.0,0.22017498]
[1644540294640,0.0467,42788.0,42786.0,0.21517498]
[1644540295040,0.0467,42788.0,42785.0,0.00085308]
[1644540295243,0.058489,42787.0,42785.0,0.00085308]
[1644540295441,0.0467,42786.0,42785.0,0.00085308]
[1644540295641,0.043489,42787.0,42785.0,0.00085308]
[1644540295642,9e-06,42787.0,42785.0,0.00085308]
[1644540295985,0.06454745,42787.0,42785.0,0.00085308]
[1644540296183,0.06454745,42787.0,42786.0,0.24127483]
[1644540296583,0.12303645,42787.0,42785.0,0.01446954]
[1644540297489,0.07303645,42787.0,42785.0,0.01446954]
[1644540297683,0.07303645,42787.0,42785.0,0.00946954]
[1644540297983,0.0875839,42787.0,42785.0,0.00946954]
[1644540298384,0.0875839,42787.0,42786.0,0.22063042]
[1644540298782,0.1342839,42787.0,42786.0,0.22063042]
[1644540298984,0.1342839,42787.0,42785.0,0.00946954]
[1644540299283,0.05,42786.0,42785.0,0.00946954]
[1644540299483,0.0967,42786.0,42785.0,0.00946954]
[1644540299938,0.11124745,42786.0,42785.0,0.00946954]
[1644540300144,1.40571745,42786.0,42785.0,0.00946954]
[1644540300339,1.40571745,42786.0,42784.0,1.99946954]
[1644540300340,1.50571745,42786.0,42784.0,1.99946954]
[1644540301541,1.50571745,42786.0,42784.0,1.64838954]
[1644540301940,1.5202649,42786.0,42784.0,1.64838954]
[1644540302139,1.50571745,42786.0,42784.0,1.29731654]
[1644540303783,1.50571745,42786.0,42784.0,0.94624954]
[1644540304285,1.50571745,42786.0,42784.0,0.59511854]
[1644540304484,0.95,42784.0,42779.0,0.02172299]
[1644540304685,1.4763,42785.0,42781.0,0.00026024]
[1644540304686,1.218,42785.0,42781.0,0.00026024]
[1644540304884,0.316811,42782.0,42781.0,0.00026024]
[1644540305084,0.363511,42782.0,42781.0,0.00026024]
[1644540305288,0.0467,42782.0,42781.0,0.00026024]
[1644540305483,0.5,42784.0,42781.0,0.00026024]
[1644540305683,0.5,42784.0,42782.0,0.05]
[1644540305891,0.51454745,42786.0,42781.0,0.00026024]
[1644540305892,0.0467,42785.0,42781.0,0.00026024]
[1644540306093,0.08799873,42782.0,42769.0,0.53807914]
[1644540306288,0.0467,42781.0,42769.0,0.53815114]
[1644540306890,0.0217,42781.0,42778.0,0.25012537]
[1644540307086,0.117021,42779.0,42778.0,0.25012537]
[1644540307349,0.058507,42780.0,42778.0,0.46813231]
[1644540307657,0.654031,42794.0,42782.0,1.05]
[1644540307658,0.42,42794.0,42782.0,1.05]
[1644540307852,0.25322467,42794.0,42783.0,0.05]
[1644540308048,0.058482,42790.0,42783.0,0.05]
[1644540308251,0.17526631,42807.0,42788.0,0.05]
[1644540308252,0.31235704,42804.0,42788.0,0.05]
[1644540308446,0.01836445,42806.0,42799.0,0.22192535]
[1644540309047,0.01836445,42806.0,42791.0,0.31235704]
[1644540309250,0.01836445,42806.0,42800.0,0.20073608]
[1644540309251,0.058464,42803.0,42800.0,0.20073608]
[1644540310051,0.058464,42803.0,42801.0,0.34970515]
[1644540310252,0.05397584,42803.0,42802.0,0.5]
[1644540310455,0.05399739,42812.0,42802.0,0.5]
[1644540310756,0.05399739,42812.0,42809.0,0.04642467]
[1644540310757,0.116915,42811.0,42809.0,0.04642467]
[1644540311001,0.11245439,42812.0,42809.0,0.04642467]
[1644540311198,0.11245439,42812.0,42809.0,0.5917948]
[1644540311397,0.11245439,42812.0,42810.0,0.22259434]
[1644540311598,0.04906679,42817.0,42811.0,1.05]
[1644540311800,0.0217087,42818.0,42816.0,0.04642467]
[1644540312003,0.00216952,42818.0,42817.0,1.05]
[1644540312201,0.56,42829.0,42817.0,1.05]
[1644540312202,2.71e-06,42819.0,42818.0,0.40243025]
[1644540312399,0.02269,42830.0,42819.0,0.5]
[1644540312604,0.02269,42830.0,42828.0,0.04642467]
[1644540312798,0.02269,42830.0,42828.0,0.21849088]
[1644540314196,0.116873,42829.0,42828.0,0.21849088]
[1644540314598,0.116873,42829.0,42828.0,0.24523868]
[1644540314838,3e-06,42829.0,42828.0,0.29166335]
[1644540316635,3e-06,42829.0,42828.0,0.24523868]
[1644540317338,0.00049474,42831.0,42828.0,0.29166335]
[1644540317639,0.233737,42846.0,42830.0,1.05]
[1644540317941,0.0467,42852.0,42830.0,1.05]
[1644540317942,0.233705,42852.0,42842.0,0.15]
[1644540318141,0.26860475,42852.0,42850.0,0.25811563]
[1644540318342,0.08798604,42844.0,42828.0,0.0267478]
[1644540318586,0.00568534,42841.0,42828.0,0.0267478]
[1644540318782,0.62809076,42843.0,42828.0,0.0267478]
[1644540318982,0.058428,42835.0,42828.0,0.0267478]
[1644540319183,0.058428,42835.0,42831.0,0.23813815]
[1644540319382,0.175289,42843.0,42831.0,0.23813815]
[1644540319383,0.175289,42843.0,42832.0,0.75]
[1644540319581,0.175289,42843.0,42833.0,0.04642467]
[1644540319884,0.175289,42843.0,42838.0,0.0267478]
[1644540320082,0.175089,42843.0,42838.0,0.0267478]
[1644540320283,0.05842,42840.0,42838.0,0.0267478]
[1644540320486,0.00357533,42839.0,42838.0,0.0267478]
[1644540320786,0.0467,42839.0,42832.0,0.0023565]
[1644540321582,0.0467,42839.0,42831.0,0.97790886]
[1644540321782,0.058436,42836.0,42831.0,0.97790886]
[1644540321981,0.0467,42835.0,42831.0,0.94969049]
[1644540323038,0.0467,42835.0,42831.0,0.59901649]
[1644540323039,0.058445,42832.0,42831.0,0.59901649]
[1644540323236,1.323145,42832.0,42831.0,0.03251649]
[1644540323439,1.554845,42832.0,42831.0,0.03251649]
[1644540323634,0.85,42831.0,42821.0,0.00026406]
[1644540323837,0.348616,42824.0,42821.0,0.00026406]
[1644540324039,0.348616,42824.0,42818.0,0.0010563]
[1644540324040,0.33144274,42823.0,42818.0,0.0010563]
[1644540324235,0.33144274,42823.0,42809.0,0.23806695]
[1644540324435,0.00357533,42822.0,42809.0,0.23806695]
[1644540324635,0.0467,42821.0,42809.0,0.23806695]
[1644540324833,0.32628474,42823.0,42809.0,0.23806695]
[1644540324834,0.116913,42819.0,42809.0,0.23806695]
[1644540325037,0.0467,42818.0,42812.0,0.25479315]
[1644540325238,0.105157,42818.0,42812.0,0.25479315]
[1644540325988,0.105157,42818.0,42809.0,0.23806695]
[1644540326185,0.155157,42818.0,42809.0,0.23806695]
[1644540326386,0.155157,42818.0,42808.0,0.01909725]
[1644540326587,0.46020573,42818.0,42811.0,0.00026148]
[1644540326786,0.255157,42818.0,42811.0,0.00026148]
[1644540327586,0.208457,42818.0,42809.0,0.32648805]
[1644540327784,0.043,42817.0,42812.0,0.00026147]
[1644540328386,0.04284362,42817.0,42812.0,0.00026147]
[1644540328785,0.04284362,42817.0,42809.0,0.32648805]
[1644540328985,0.04284362,42817.0,42809.0,0.31818522]
[1644540329587,0.04284362,42817.0,42813.0,0.04642467]
[1644540329833,0.04284362,42817.0,42813.0,0.27085351]
[1644540330231,0.04284362,42817.0,42809.0,0.31818522]
[1644540331435,0.04284362,42817.0,42810.0,0.18848385]
[1644540332332,0.03284362,42817.0,42810.0,0.18825178]
[1644540332532,0.03284362,42817.0,42813.0,0.04642467]
[1644540333135,0.03284362,42817.0,42810.0,0.00023207]
[1644540333339,0.2317,42814.0,42810.0,0.00023207]
[1644540333599,0.2317,42814.0,42791.0,0.8216]
[1644540333600,1.218,42812.0,42793.0,0.0011]
[1644540333802,1.2817,42802.0,42774.0,0.04642467]
[1644540334006,1.2817,42802.0,42768.0,0.01101989]
[1644540334007,0.2317,42787.0,42768.0,0.43101989]
[1644540334197,0.2317,42787.0,42773.0,0.30699656]
[1644540334198,0.2317,42782.0,42773.0,0.30699656]
[1644540334397,0.2317,42776.0,42769.0,7.2e-05]
[1644540334596,0.26771269,42775.0,42768.0,0.01211989]
[1644540334794,0.26771269,42775.0,42768.0,0.01219189]
[1644540334999,0.2317,42771.0,42766.0,0.00056772]
[1644540335197,0.2317,42771.0,42766.0,0.00063972]
[1644540335198,0.043,42770.0,42766.0,0.00063972]
[1644540335398,0.264664,42769.0,42766.0,0.25316325]
[1644540335598,0.10153,42768.0,42766.0,0.25323525]
[1644540335795,0.10153,42768.0,42766.0,0.25316325]
[1644540336197,0.00956891,42769.0,42766.0,0.25316325]
[1644540336405,0.95901133,42771.0,42768.0,0.59642467]
[1644540336601,0.2817,42783.0,42770.0,0.75]
[1644540336602,0.05,42783.0,42770.0,0.75]
[1644540336798,0.043,42772.0,42766.0,0.25316325]
[1644540337000,0.058513,42771.0,42767.0,7.2e-05]
[1644540337236,0.058513,42771.0,42766.0,0.25323525]
[1644540337532,0.058513,42771.0,42769.0,0.04642467]
[1644540337730,0.058513,42771.0,42767.0,7.2e-05]
[1644540337930,0.058513,42771.0,42768.0,0.21142471]
[1644540338130,0.058513,42771.0,42767.0,0.001072]
[1644540338131,0.26975794,42769.0,42767.0,0.001072]
[1644540338331,0.31975794,42769.0,42767.0,0.001]
[1644540338532,0.31975794,42769.0,42767.0,0.00125877]
[1644540338730,0.043,42768.0,42767.0,0.00125877]
[1644540339432,0.41975794,42769.0,42767.0,0.00125877]
[1644540339631,0.043,42768.0,42767.0,0.001]
[1644540339834,0.043,42768.0,42765.0,0.00383044]
[1644540340035,0.043,42768.0,42765.0,0.00061532]
[1644540340439,0.043,42768.0,42762.0,0.00108664]
[1644540340637,0.043,42768.0,42764.0,7.2e-05]
[1644540340638,0.05853,42766.0,42764.0,7.2e-05]
[1644540340837,0.05853,42766.0,42755.0,0.002266]
[1644540340838,0.85,42764.0,42755.0,0.002266]
[1644540341110,0.85,42764.0,42744.0,0.00014192]
[1644540341111,0.75357533,42759.0,42744.0,0.00014192]
[1644540341304,0.48104,42757.0,42755.0,7.2e-05]
[1644540341525,0.48104,42757.0,42727.0,6e-05]
[1644540341526,0.8,42755.0,42727.0,6e-05]
[1644540341712,0.65,42745.0,42727.0,6e-05]
[1644540341911,0.05,42732.0,42731.0,0.00113536]
[1644540342105,0.043,42732.0,42727.0,7.2e-05]
[1644540342306,0.043,42732.0,42726.0,0.20151021]
[1644540342505,0.043,42732.0,42728.0,0.27530487]
[1644540342705,0.101585,42732.0,42728.0,0.27530487]
[1644540342903,0.096585,42732.0,42724.0,7.2e-05]
[1644540343107,0.096585,42732.0,42723.0,0.0011]
[1644540343108,0.05,42728.0,42723.0,0.0011]
[1644540343304,0.446585,42732.0,42723.0,0.0011]
[1644540343305,0.043,42727.0,42723.0,0.0011]
[1644540343505,0.1,42732.0,42726.0,0.00025773]
[1644540343808,0.101584,42731.0,42726.0,0.00025773]
[1644540344012,0.101584,42731.0,42708.0,0.78245455]
[1644540344013,0.05859505,42726.0,42708.0,0.04545455]
[1644540344311,0.05,42727.0,42705.0,0.66339572]
[1644540344312,1.05,42715.0,42705.0,0.66339572]
[1644540344509,1.05,42715.0,42683.0,0.00040494]
[1644540344510,0.25,42706.0,42683.0,0.00040494]
[1644540344746,0.25,42706.0,42672.0,0.0909091]
[1644540344747,0.05,42691.0,42686.0,0.00065832]
[1644540344939,0.0492836,42691.0,42686.0,0.00065832]
[1644540345141,0.0371136,42691.0,42683.0,0.14180606]
[1644540345336,0.043,42693.0,42684.0,7.2e-05]
[1644540345539,0.05,42685.0,42683.0,0.00048864]
[1644540345741,0.043,42684.0,42683.0,0.00048864]
[1644540345939,0.101642,42684.0,42683.0,0.00041664]
[1644540346140,0.151642,42684.0,42683.0,0.00041664]
[1644540346338,0.201642,42684.0,42683.0,0.00041664]
[1644540346544,0.201642,42684.0,42682.0,0.01001608]
[1644540346545,0.143,42684.0,42682.0,0.26306349]
[1644540346737,0.117292,42683.0,42679.0,7.2e-05]
[1644540346936,0.117292,42683.0,42678.0,0.0011]
[1644540346937,0.043,42682.0,42678.0,0.0011]
[1644540347138,0.058645,42681.0,42678.0,0.0011]
[1644540347338,0.27595285,42688.0,42672.0,0.08752084]
[1644540347543,0.00568534,42701.0,42672.0,0.08752084]
[1644540347544,0.234576,42723.0,42676.0,7.2e-05]
[1644540347738,0.1,42704.0,42699.0,0.05]
[1644540347939,0.09597,42731.0,42677.0,0.043]
[1644540347940,0.16014339,42724.0,42717.0,0.19668879]
[1644540348141,0.058588,42728.0,42718.0,0.943]
[1644540348343,0.22788274,42751.0,42730.0,0.26430627]
[1644540348598,1.171752,42765.0,42730.0,0.26430627]
[1644540348599,6.288558,42752.0,42749.0,0.26120858]
[1644540348795,6.288558,42752.0,42750.0,0.043]
[1644540348796,6.22376506,42752.0,42750.0,0.043]
[1644540348999,6.22376506,42752.0,42732.0,0.05]
[1644540349000,0.24379711,42751.0,42739.0,0.05]
[1644540349394,0.24379711,42751.0,42742.0,0.05]
[1644540349597,0.05,42765.0,42743.0,0.043]
[1644540349898,0.05,42765.0,42749.0,0.05]
[1644540349899,0.00042052,42753.0,42749.0,0.05]
[1644540350099,0.00042052,42753.0,42750.0,0.343]
[1644540350100,5.2e-07,42753.0,42750.0,0.343]
[1644540350301,0.36408536,42788.0,42752.0,0.095]
[1644540350302,0.005,42788.0,42752.0,0.095]
[1644540350498,0.005,42788.0,42762.0,0.045]
[1644540350696,0.005,42788.0,42773.0,0.2322732]
[1644540350697,0.26404262,42778.0,42773.0,0.2322732]
[1644540350900,0.0742202,42770.0,42763.0,0.32450921]
[1644540351100,0.0742202,42770.0,42763.0,0.043072]
[1644540351299,0.058517,42779.0,42769.0,0.045]
[1644540351506,0.05851749,42795.0,42769.0,0.045]
[1644540351507,0.05,42790.0,42778.0,0.045]
[1644540351704,0.18575803,42802.0,42776.0,0.043]
[1644540351898,0.19350498,42783.0,42778.0,0.045]
[1644540352359,0.27708516,42792.0,42782.0,0.045]
[1644540352554,0.27708516,42792.0,42780.0,0.34432527]
[1644540352555,0.10175224,42789.0,42784.0,0.045]
[1644540352758,0.10175224,42789.0,42779.0,0.2161784]
[1644540352953,0.10175224,42789.0,42777.0,0.3]
[1644540352954,0.07997065,42789.0,42777.0,0.3]
[1644540353152,0.07997065,42789.0,42772.0,0.3]
[1644540353355,0.06379839,42779.0,42771.0,0.088]
[1644540353556,0.06379839,42779.0,42771.0,0.043]
[1644540353754,0.06379839,42779.0,42771.0,0.088]
[1644540353955,0.06379839,42779.0,42777.0,0.045]
[1644540354154,0.06379839,42779.0,42778.0,0.2748732]
[1644540354358,0.06379839,42779.0,42776.0,0.27974956]
[1644540354556,0.00049292,42777.0,42776.0,0.27974956]
[1644540354755,0.00049292,42777.0,42776.0,0.82900049]
[1644540355055,0.05,42790.0,42776.0,0.44395093]
[1644540355257,0.00197016,42810.0,42776.0,0.44395093]
[1644540355258,0.00197016,42810.0,42785.0,0.045]
[1644540355456,0.25745368,42813.0,42794.0,0.045]
[1644540355457,0.02180467,42803.0,42794.0,0.045]
[1644540355654,0.02180467,42803.0,42795.0,0.23358355]
[1644540356081,0.02180467,42803.0,42797.0,0.005]
[1644540356281,0.02180467,42803.0,42795.0,0.23358355]
[1644540356481,0.01989095,42803.0,42795.0,0.23358355]
[1644540356688,0.05,42808.0,42798.0,0.005]
[1644540356890,0.076,42817.0,42802.0,0.01989095]
[1644540357083,0.05,42820.0,42808.0,0.35]
[1644540357287,0.01,42829.0,42811.0,0.005]
[1644540357288,0.07744874,42816.0,42811.0,0.005]
[1644540357486,0.01,42829.0,42812.0,0.65]
[1644540357487,0.05,42828.0,42812.0,0.65]
[1644540357683,0.04,42828.0,42813.0,0.3]
[1644540357882,0.08213768,42814.0,42811.0,0.005]
[1644540358083,0.00049322,42816.0,42812.0,0.42011057]
[1644540358286,0.06,42829.0,42815.0,0.2033]
[1644540358484,0.06,42829.0,42813.0,0.3]
[1644540358485,0.38994459,42833.0,42818.0,0.005]
[1644540358685,0.33150259,42833.0,42823.0,0.005]
[1644540358885,0.33150259,42833.0,42820.0,0.34422072]
[1644540359084,0.0634311,42832.0,42824.0,0.005]
[1644540359286,0.0634311,42832.0,42825.0,0.2076156]
[1644540359490,0.27962977,42832.0,42825.0,0.2076156]
[1644540359735,0.0634311,42832.0,42825.0,0.2076156]
[1644540359936,0.0634311,42832.0,42826.0,0.29117812]